{"text_format":"1","workbook":"xlsx","n_sheets":3,"sheets":["Hoja1","Hoja2","Hoja3"],"not_rendered":{"charts":0,"images":0,"macros":0,"external_links":0,"defined_names":0,"comments":0,"pivot_tables":0},"unopened":[],"bounds":{"document_bytes":16777216,"sheet_cells":100000,"rows_first":2000,"rows_last":500,"rows_between":2000,"halvings":0,"cell_chars":16384,"cell_head_chars":4096},"cells_cut":0,"cells_raw":0,"read":"whole","date_system":"1900"}

{"sheet":"Hoja1","index":0,"n_rows":37,"n_cols":16,"rows_kept":37,"cut":false,"hidden":false,"merged":[[0,1,0,15],[2,1,2,15]]}
[null,"INSTITUTO TECNOLÓGICO SUPERIOR DE PEROTE"]
[]
[null,"VIÁTICOS EJERCIDOS EN EL MES DE: SEPTIEMBRE 2015"]
[]
["ÁREA","OBJETO O MOTIVO DE LA COMISIÓN","SERV. PÚB. COMISIONADOS","LUGAR DE COMISIÓN","DESTINO DE LA COMISIÓN","FECHA DE INICIO","FECHA DE TERMINO","ORIGEN DEL RECURSO","ALIMENTOS","HOSPEDAJE","PASAJES","PEAJES","TRASLADOS LOCALES","COMBUSTIBLES","IMPORTE EJERCIDO","RESPONSABLE QUE PROPORCIONA LA INFORMACIÓN"]
["ACAD","ASISTIR A REUNION DE TRABAJO ",1,"EDO.","TUXPAN, VER.","2015-09-02","2015-09-02","FED.",900,2760,null,200,null,1000,{"$f":"SUM(I6:N6)","v":4860},"REC. FINANCIEROS"]
["PYV","ASISTIR A REUNION DE TRABAJO",2,"EDO.","XALAPA, VER.","2015-09-02","2015-09-02","FED.",660,null,null,218,null,200,{"$f":"SUM(I7:N7)","v":1078},"REC. FINANCIEROS"]
["PYV","ASISTIR A REVISION DE CARPETA DE JUNTA DIRECTIVA",1,"EDO.","XALAPA, VER.","2015-09-03","2015-09-03","FED.",360,null,null,218,null,200,{"$f":"SUM(I8:N8)","v":778},"REC. FINANCIEROS"]
["PYV","AISTIR A FIRMA DE CONVENIO",2,"EDO.","MARTINEZ DE LA TORRE, VER","2015-09-03","2015-09-03","FED.",720,null,null,null,null,400,1120,"REC. FINANCIEROS"]
["ACAD","ASISTIR COMO JURADO EN EL EVENTO NACIONAL DE INNOVACION TECNOLOGICA 2015",1,"NAC. ","TEHUACAN, PUE.","2015-09-07","2015-09-11","FED.",1500,2800,null,868,null,null,5168,"REC. FINANCIEROS"]
["ACAD","ASISTIR A CAPACITACION DE INSTRUCTORES DE DIPLOMADO",1,"NAC. ","CD. VICTORIA, TAMAULIPAS","2015-09-07","2015-09-11","FED.",1800,3600,{"$f":"8428+548","v":8976},null,400,null,14776,"REC. FINANCIEROS"]
["ACAD","ASISTIR COMO EVALUADOR EN EL CONCURSO EXPO-CIENCIAS",1,"EDO.","XALAPA, VER.","2015-09-10","2015-09-11","FED.",600,null,null,218,null,200,1018,"REC. FINANCIEROS"]
["ACAD","ASISTIR COMO EVALUADOR EN EL CONCURSO EXPO-CIENCIAS",1,"EDO.","XALAPA, VER.","2015-09-10","2015-09-11","FED.",600,null,null,null,null,null,600,"REC. FINANCIEROS"]
["ACAD","ASISTIR COMO EVALUADOR EN EL CONCURSO EXPO-CIENCIAS",1,"EDO.","XALAPA, VER.","2015-09-10","2015-09-11","FED.",600,null,272,null,100,null,972,"REC. FINANCIEROS"]
["ACAD","ASISTIR COMO EVALUADOR EN EL CONCURSO EXPO-CIENCIAS",1,"EDO.","XALAPA, VER.","2015-09-10","2015-09-11","FED.",600,null,480,null,200,null,1280,"REC. FINANCIEROS"]
["PYV","ASISTIR A OFICINAS DE IMSS A ENTREGAR ALTAS",1,"EDO.","XALAPA, VER.","2015-09-09","2015-09-09","FED.",300,null,null,218,null,200,718,"REC. FINANCIEROS"]
["PYV","ASISTIR A REUNION DE BECAS DE MANUTENCION",1,"EDO.","XALAPA, VER.","2015-09-11","2015-09-11","FED.",300,null,null,218,null,200,718,"REC. FINANCIEROS"]
["PYV","ASISTIR A OFICINAS DEL IMSS A SOLICITAR AFIL 66",1,"EDO.","XALAPA, VER.","2015-09-23","2015-09-23","FED.",300,null,null,218,null,200,718,"REC. FINANCIEROS"]
["ACAD","ASISTIR A TALLER DE DIFUSION DEL PROYECTO DE ESTIMULO A LA INNOVACION",2,"EDO.","XALAPA, VER.","2015-09-22","2015-09-22","FED.",600,null,null,218,null,200,1018,"REC. FINANCIEROS"]
["PYV","ASISTIR A ENTREGAR INFORMACION DE ENTREGA DE PRESUPUESTO EN LA DET",1,"EDO.","XALAPA, VER.","2015-09-21","2015-09-21","FED.",300,null,null,218,null,200,718,"REC. FINANCIEROS"]
["PYV","ASISTIR A COTIZAR HOSPEDAJE Y COMIDA PARA ALUMNOS ",1,"EDO.","CORDOBA, VER.","2015-09-22","2015-09-22","FED.",300,null,null,480,null,500,1280,"REC. FINANCIEROS"]
["ACAD","ASISTIR A REUNION EN INECOL",1,"EDO.","COATEPEC, VER.","2015-09-22","2015-09-22","FED.",300,null,null,218,null,200,718,"REC. FINANCIEROS"]
["PYV","ASISTIR A REUNION DE TRABAJO EN LA CAMARA MEXICANA DE LA INDUSTRIA Y EL COMERCIO ",2,"EDO.","XALAPA, VER.","2015-09-22","2015-09-22","FED.",660,null,null,218,null,200,1078,"REC. FINANCIEROS"]
["PYV","ASISTIR A LA DIRECCION GENERAL DE PROFESIONES A RECOGER TITULOS ",2,"NAC. ","MEXICO, DF.","2015-09-23","2015-09-23","FED.",600,null,1200,null,300,null,2100,"REC. FINANCIEROS"]
["ADMO","ASISTIR A ENTREGAR DOCUMENTACION EN OFICINAS DEL IMSS",1,"EDO.","XALAPA, VER.","2015-09-22","2015-09-22","FED.",300,null,null,218,null,200,718,"REC. FINANCIEROS"]
["PYV","ASISTIR A REUNION DE TRABAJO CONVOCADA POR LA DET",2,"EDO.","XICO, VERACRUZ","2015-09-22","2015-09-22","FED.",660,null,null,218,null,300,1178,"REC. FINANCIEROS"]
["ACAD","ASISTIR A PARTICIPAR COMO GRUPO ACADEMICO PARA EVALUACION DIAGNOSTICO ",1,"EDO.","CHICONTEPEC, VER","2015-09-23","2015-09-25","FED.",720,null,128,null,null,null,848,"REC. FINANCIEROS"]
["ADMO","ASISTIR A ENTREGA DE DOCUMENTACION EN SEFIPLAN ",1,"EDO.","XALAPA, VER.","2015-09-23","2015-09-23","FED.",300,null,null,218,null,200,718,"REC. FINANCIEROS"]
["ADMO","ASISTIR A OFICINAS DE LA SECRETARIA DEL TRABAJO ",1,"EDO.","XALAPA, VER.","2015-09-24","2015-09-24","FED.",300,null,null,218,null,200,{"$f":"SUM(I29:N29)","v":718},"REC. FINANCIEROS"]
["ACAD","ASISTIR A REUNION DE TRABAJO EN EL COVEICYDET",1,"EDO.","XALAPA, VER.","2015-09-23","2015-09-23","FED.",300,null,null,218,null,200,718,"REC. FINANCIEROS"]
[]
["PyV","DIRECCIÓN DE PLANEACIÓN Y VINCULACIÓN"]
["ACAD.","DIRECCIÓN ACADÉMICA"]
["SIND.","SINDICATO"]
["ADMO.","SUBDIRECCIÓN ADMINISTRATIVA"]
["FED. ","RECURSO FEDERAL"]
["I.P.","INGRESOS PROPIOS"]

{"sheet":"Hoja2","index":1,"n_rows":0,"n_cols":0,"rows_kept":0,"cut":false,"hidden":false,"merged":[]}

{"sheet":"Hoja3","index":2,"n_rows":0,"n_cols":0,"rows_kept":0,"cut":false,"hidden":false,"merged":[]}